bitfinex/quotes_ETHUSD_20250511
["timestamp","ask_amount","ask_price","bid_price","bid_amount"]
[1747003230898,0.8185,2494.0,2493.2,0.04010363]
[1747003231104,4.01026054,2493.7,2493.2,0.04010363]
[1747003231432,4.01027952,2493.6,2493.2,0.04010363]
[1747003231798,0.8185,2494.0,2493.3,0.15238184]
[1747003232227,4.01021933,2493.7,2493.2,0.7811]
[1747003232529,4.01021933,2493.7,2493.3,1.13311743]
[1747003232729,4.00998457,2493.8,2493.3,1.13311743]
[1747003233025,4.82822499,2494.0,2493.9,8.0]
[1747003233238,4.82822499,2494.0,2493.3,9.13311743]
[1747003233393,4.82822499,2494.0,2493.9,0.13146476]
[1747003233890,4.00983672,2493.9,2493.4,1.1435204]
[1747003234215,4.00983672,2493.9,2493.5,0.13146476]
[1747003234216,4.78246628,2493.6,2493.5,0.13146476]
[1747003234618,4.01111429,2493.1,2492.8,6.266]
[1747003234814,4.01098706,2493.2,2492.9,8.0]
[1747003235631,4.01075171,2493.3,2492.9,8.0]
[1747003235994,4.01092963,2493.2,2492.9,8.0]
[1747003237530,4.01080788,2493.3,2492.9,8.0]
[1747003237734,4.82737036,2493.9,2493.6,8.79361]
[1747003237934,0.8175,2493.9,2493.2,0.7514]
[1747003238232,4.00974427,2494.0,2493.4,8.0]
[1747003238429,4.00981442,2493.9,2493.5,0.04009871]
[1747003239747,4.00952469,2494.1,2493.5,0.04009871]
[1747003240097,4.00952469,2494.1,2493.5,1.15230858]
[1747003240538,0.033749,2494.4,2493.6,21.600517]
[1747003240696,0.033749,2494.4,2493.8,0.55]
[1747003241038,0.033749,2494.4,2494.0,8.0]
[1747003241234,0.033749,2494.4,2494.2,8.0]
[1747003241421,0.033749,2494.4,2494.3,32.59189893]
[1747003241745,0.033749,2494.4,2494.3,33.374914]
[1747003242241,0.033749,2494.4,2494.3,23.78174]
[1747003242535,0.033749,2494.4,2494.3,12.827387]
[1747003243212,0.033749,2494.4,2494.3,8.8231]
[1747003243412,0.033749,2494.4,2494.3,20.09946524]
[1747003243615,0.033749,2494.4,2494.3,9.81741]
[1747003243800,0.033749,2494.4,2494.3,13.874447]
[1747003244414,0.033749,2494.4,2494.3,9.81741]
[1747003244836,0.033749,2494.4,2494.3,9.94120371]
[1747003245447,0.033749,2494.4,2494.3,11.61120371]
[1747003246046,0.033749,2494.4,2494.3,51.80325371]
[1747003246409,0.033749,2494.4,2494.3,41.53498271]
[1747003246611,0.033749,2494.4,2494.3,37.95843771]
[1747003247009,0.033749,2494.4,2494.3,37.50508871]
[1747003247210,0.033749,2494.4,2494.3,38.05508871]
[1747003248058,0.033749,2494.4,2494.3,11.61120371]
[1747003248435,0.033749,2494.4,2494.3,51.80325371]
[1747003248632,0.033749,2494.4,2494.3,51.17352771]
[1747003249651,0.033749,2494.4,2494.3,45.24232371]
[1747003253968,0.033749,2494.4,2494.3,11.61120371]
[1747003254266,0.033749,2494.4,2494.3,51.80325371]
[1747003256437,0.033749,2494.4,2494.3,11.61120371]
[1747003258672,0.033749,2494.4,2494.3,51.80325371]
[1747003259541,0.033749,2494.4,2494.3,11.61120371]
[1747003260343,0.033749,2494.4,2494.3,51.80325371]
[1747003260855,0.033749,2494.4,2494.3,34.75491571]
[1747003261051,0.033749,2494.4,2494.3,29.05821871]
[1747003261263,4.85072911,2494.4,2494.3,9.24379371]
[1747003262245,0.841749,2494.4,2494.3,9.24379371]
[1747003262667,0.033749,2494.4,2494.3,9.24379371]
[1747003262975,0.033749,2494.4,2494.3,49.43584371]
[1747003263283,0.033749,2494.4,2494.3,52.41807122]
[1747003263459,0.033749,2494.4,2494.3,53.72737122]
[1747003263643,0.033749,2494.4,2494.3,13.53532122]
[1747003263886,0.033749,2494.4,2494.3,9.43309371]
[1747003264188,0.033749,2494.4,2494.3,49.66522405]
[1747003264482,0.033749,2494.4,2494.3,50.74514371]
[1747003266579,0.033749,2494.4,2494.3,10.55309371]
[1747003267087,0.033749,2494.4,2494.3,50.74514371]
[1747003267382,0.033749,2494.4,2494.3,54.84737122]
[1747003267892,0.033749,2494.4,2494.3,57.80237122]
[1747003268061,0.033749,2494.4,2494.3,57.04307122]
[1747003268446,0.033749,2494.4,2494.3,16.85102122]
[1747003268666,0.033749,2494.4,2494.3,12.74879371]
[1747003269243,0.033749,2494.4,2494.3,13.57979371]
[1747003269646,0.033749,2494.4,2494.3,10.62479371]
[1747003269886,0.033749,2494.4,2494.3,13.58479371]
[1747003270184,0.033749,2494.4,2494.3,53.77684371]
[1747003270486,0.033749,2494.4,2494.3,57.87907122]
[1747003272703,0.033749,2494.4,2494.3,57.87007122]
[1747003273007,0.033749,2494.4,2494.3,60.91807122]
[1747003275261,0.033749,2494.4,2494.3,24.93328571]
[1747003275493,0.033749,2494.4,2494.3,14.11579371]
[1747003275677,0.033749,2494.4,2494.3,22.88834771]
[1747003279205,0.033749,2494.4,2494.3,19.94434771]
[1747003282624,0.033749,2494.4,2494.3,11.17179371]
[1747003283038,0.033749,2494.4,2494.3,37.56313971]
[1747003283495,0.033749,2494.4,2494.3,23.07499271]
[1747003285626,0.033749,2494.4,2494.3,0.12379371]
[1747003285627,4.04272911,2494.4,2494.3,0.12379371]
[1747003286130,4.04272911,2494.4,2494.1,8.0]
[1747003286131,4.00928136,2494.3,2494.1,8.0]
[1747003286940,4.00930157,2494.2,2494.1,8.0]
[1747003287140,4.00930157,2494.2,2494.1,12.546377]
[1747003288636,3.90930157,2494.2,2494.1,10.968654]
[1747003288944,3.90930157,2494.2,2494.0,8.0]
[1747003289137,4.00918861,2494.3,2494.0,8.0]
[1747003289835,4.00918861,2494.3,2494.1,0.10928222]
[1747003290434,4.04279878,2494.4,2494.1,0.10928222]
[1747003290636,0.033749,2494.4,2494.1,0.10928222]
[1747003291007,4.04273725,2494.4,2494.1,0.10928222]
[1747003292005,4.04273725,2494.4,2493.9,10.944]
[1747003292232,4.04273725,2494.4,2494.2,0.10928222]
[1747003292447,4.04273725,2494.4,2493.9,12.3329]
[1747003292448,0.033749,2494.4,2494.0,0.04008944]
[1747003292646,0.033749,2494.4,2494.3,0.10928222]
[1747003292862,0.033749,2494.4,2494.3,30.620643]
[1747003293147,0.033749,2494.4,2494.3,8.11202114]
[1747003294019,0.033749,2494.4,2494.3,19.21584014]
[1747003294223,0.033749,2494.4,2494.3,8.11202114]
[1747003294450,0.033749,2494.4,2494.3,19.21584014]
[1747003294652,0.033749,2494.4,2494.3,17.60681714]
[1747003294834,0.033749,2494.4,2494.3,10.55668314]
[1747003295039,0.033749,2494.4,2494.3,8.11202114]
[1747003295444,4.04272911,2494.4,2494.3,8.11202114]
[1747003295817,4.04272911,2494.4,2494.3,10.75818914]
[1747003296016,4.04272911,2494.4,2494.3,8.11202114]
[1747003296240,4.04272911,2494.4,2494.3,0.11202114]
[1747003296548,4.00952851,2494.1,2493.9,8.0]
[1747003296718,4.00952851,2494.1,2494.0,0.11160326]
[1747003298869,4.00939415,2494.2,2494.0,0.11160326]
[1747003299072,4.00939415,2494.2,2494.1,11.347172]
[1747003299251,4.00939415,2494.2,2494.1,10.321149]
[1747003299660,4.80699415,2494.2,2494.1,0.11160326]
[1747003299866,4.80476695,2494.2,2494.1,0.11160326]
[1747003300164,4.01034977,2493.6,2493.3,1.12]
[1747003300365,4.80772164,2493.7,2493.1,1.12]
[1747003300565,4.01068537,2493.4,2493.1,1.12]
[1747003300870,0.7976,2493.7,2493.1,9.12]
[1747003301170,4.01090967,2493.2,2493.1,1.12]
[1747003301565,0.7546,2493.2,2492.6,1.12]
[1747003301880,4.01107055,2493.1,2492.5,1.12]
[1747003302029,4.7655675,2493.2,2492.6,0.99294]
[1747003302230,4.01116454,2493.1,2492.6,0.99294]
[1747003303133,4.01142524,2492.9,2492.6,0.99294]
[1747003303470,4.01131003,2493.0,2492.8,8.0]
[1747003303645,4.01131003,2493.0,2492.6,0.99294]
[1747003304168,4.01148474,2492.9,2492.6,0.99294]
[1747003304465,4.01133158,2493.0,2492.9,4.011484]
[1747003304671,4.01133158,2493.0,2492.9,8.0]
[1747003304831,4.01133158,2493.0,2492.9,8.11008655]
[1747003305232,4.01107055,2493.1,2493.0,8.0]
[1747003305233,4.01112475,2493.1,2493.0,8.0]
[1747003305437,4.01112475,2493.1,2492.9,0.11008655]
[1747003305633,4.01112475,2493.1,2492.4,8.85161369]
[1747003305634,4.01112475,2493.1,2493.0,0.110226]
[1747003306076,0.7546,2493.2,2492.4,8.8115]
[1747003306371,4.01128372,2493.0,2492.5,1.46995]
[1747003306577,4.01128372,2493.0,2492.5,1.580176]
[1747003307274,2.943,2493.7,2492.5,1.580176]
[1747003307275,4.0103621,2493.6,2493.0,4.011283]
[1747003307451,4.0103621,2493.6,2492.6,0.55]
[1747003307452,4.01070721,2493.4,2492.6,0.55]
[1747003307633,4.01042711,2493.5,2492.6,0.55]
[1747003307834,4.01077085,2493.3,2492.7,0.31240693]
[1747003308037,4.0107488,2493.3,2492.9,8.0]
[1747003308283,4.82752516,2492.9,2492.7,0.11041193]
[1747003308440,0.816,2492.9,2492.4,8.8115]
[1747003308642,0.816,2492.9,2492.8,0.11041193]
[1747003308983,4.82739672,2492.9,2492.8,0.10176842]
[1747003309354,4.82739672,2492.9,2492.4,8.8115]
[1747003309692,4.82739672,2492.9,2492.5,0.10176842]
[1747003309851,0.816,2492.9,2492.5,0.10176842]
[1747003310056,0.816,2492.9,2492.5,1.58189526]
[1747003311245,4.01187515,2492.6,2492.5,0.10176842]
[1747003311873,4.01187515,2492.6,2492.3,2.945]
[1747003312093,4.01187515,2492.6,2492.5,0.10176842]
[1747003312583,4.01187515,2492.6,2492.4,8.0]
[1747003312748,4.01187515,2492.6,2492.5,0.10176842]
[1747003313377,4.01187515,2492.6,2491.1,4.47049213]
[1747003313378,4.01155327,2492.8,2491.9,8.7605]
[1747003313594,0.7933,2492.7,2492.5,0.10808775]
[1747003313777,4.0124123,2492.3,2491.9,2.942]
[1747003313945,4.01226904,2492.4,2491.9,2.942]
[1747003314150,4.01226904,2492.4,2492.0,12.104728]
[1747003314391,4.01226904,2492.4,2491.9,2.942]
[1747003314392,4.01235806,2492.3,2492.2,8.0]
[1747003314594,4.01235806,2492.3,2491.9,10.942]
[1747003314764,4.01235806,2492.3,2492.0,2.238862]
[1747003315696,0.7933,2492.7,2492.0,2.238862]
[1747003315853,4.01238596,2492.3,2491.9,10.942]
[1747003316053,4.01238596,2492.3,2492.0,2.083862]
[1747003316282,4.01238596,2492.3,2491.9,12.4425]
[1747003316787,0.7933,2492.7,2491.9,12.4425]
[1747003316990,4.01259955,2492.2,2491.9,12.4425]
[1747003317173,4.83869955,2492.2,2491.9,12.4425]
[1747003317371,4.83868388,2492.2,2491.9,10.942]
[1747003317764,4.01275951,2492.1,2491.9,8.0]
[1747003317963,4.01281316,2492.1,2491.6,0.8003]
[1747003318200,4.01281316,2492.1,2491.6,0.84042599]
[1747003318512,4.0131763,2491.8,2491.5,8.0]
[1747003318802,4.0131763,2491.8,2491.4,4.85]
[1747003318952,4.0131763,2491.8,2491.5,12.59719]
[1747003319152,4.01308689,2491.9,2491.6,8.0]
[1747003319376,4.01309196,2491.9,2491.5,8.0]
[1747003319784,4.01273892,2492.1,2491.6,0.11064492]
[1747003319992,4.0127016,2492.1,2491.6,1.40670941]
[1747003320286,0.8261,2492.2,2491.6,0.11064492]
[1747003320490,4.01329472,2491.8,2491.6,0.11064492]
[1747003320786,4.01332423,2491.7,2491.6,0.11064492]
[1747003321154,4.80092423,2491.7,2491.6,0.11064492]
[1747003321354,4.80092423,2491.7,2491.4,4.85]
[1747003321355,4.80124639,2491.5,2491.4,4.85]
[1747003321588,4.01412973,2491.2,2490.2,4.8379]
[1747003321767,4.80172973,2491.2,2490.3,1.12]
[1747003321969,4.80172973,2491.2,2490.4,0.04014845]
[1747003322668,4.80172973,2491.2,2490.3,9.12]
[1747003323271,4.80172973,2491.2,2490.4,0.04014744]
[1747003323566,4.80172973,2491.2,2490.3,9.12]
[1747003324582,4.80172973,2491.2,2490.3,2.942]
[1747003324986,4.80172973,2491.2,2490.1,0.05]
[1747003325153,4.80172973,2491.2,2490.1,2.991]
[1747003325354,6.22002823,2491.2,2490.2,8.0]
[1747003325858,6.82002823,2491.2,2490.2,8.0]
[1747003326054,6.82002823,2491.2,2490.1,8.05]
[1747003326260,6.82002823,2491.2,2490.1,0.05]
[1747003326261,7.37002823,2491.2,2490.1,0.05]
[1747003326894,4.0157417,2490.2,2490.1,0.05]
[1747003327095,4.7792417,2490.2,2490.1,0.05]
[1747003327301,4.7792417,2490.2,2490.1,0.15316159]
[1747003327486,0.7635,2490.2,2490.1,0.05]
[1747003327794,4.0156612,2490.3,2490.1,0.05]
[1747003328201,4.01558045,2490.3,2490.2,0.10316159]
[1747003328706,4.01558045,2490.3,2490.1,0.05]
[1747003328887,4.01558045,2490.3,2490.2,0.10316159]
[1747003333895,0.7635,2490.5,2490.2,0.10316159]
[1747003334065,0.778,2491.0,2490.2,0.10316159]
[1747003334276,0.778,2491.0,2490.3,0.04015192]
[1747003334498,4.01424603,2491.2,2490.4,0.7723]
[1747003334700,4.01424603,2491.2,2490.5,0.04014664]
[1747003335016,4.01455166,2491.0,2490.4,0.7723]
[1747003335213,4.01455166,2491.0,2490.6,0.11837687]
[1747003335394,4.01455166,2491.0,2490.4,0.7723]
[1747003335593,4.01431849,2491.1,2490.5,0.11837687]
[1747003337212,4.01420615,2491.2,2490.5,0.15852282]
[1747003338280,4.01412973,2491.2,2490.5,1.27852282]
[1747003338485,4.01445804,2491.0,2490.5,1.44345915]
[1747003338712,4.01436512,2491.1,2490.5,1.48360431]
[1747003338876,4.01402607,2491.3,2490.5,9.48360431]
[1747003339217,4.01415288,2491.2,2490.5,9.44345915]
[1747003339375,4.01415288,2491.2,2490.6,9.31557592]
[1747003339575,4.01415288,2491.2,2490.7,0.11451323]
[1747003339913,4.01415288,2491.2,2490.7,1.23451323]
[1747003340211,4.01431789,2491.1,2490.7,9.23451323]
[1747003340407,4.01431789,2491.1,2490.7,1.23451323]
[1747003340709,0.7532,2491.5,2491.1,4.014317]
[1747003340869,4.01408432,2491.3,2490.8,0.84554263]
[1747003341070,4.01396861,2491.3,2491.2,0.10981237]
[1747003341420,0.7532,2491.5,2490.8,0.8054]
[1747003341421,4.0143739,2491.1,2490.8,0.8054]
[1747003342522,4.01402479,2491.3,2490.8,1.98385423]
[1747003342693,4.01360208,2491.6,2490.8,2.02399494]
[1747003342892,4.01332423,2491.7,2490.8,1.98385423]
[1747003343083,0.7957,2491.8,2490.8,1.98385423]
[1747003343423,0.7957,2491.8,2490.9,9.12]
[1747003343624,0.7957,2492.2,2491.1,0.7544]
[1747003343921,4.01273348,2492.1,2491.2,0.04013438]
[1747003344134,4.01231296,2492.4,2491.4,0.7544]
[1747003344328,4.01262467,2492.2,2491.5,10.20256682]
[1747003344499,4.01262467,2492.2,2491.5,10.16244]
[1747003344823,0.7957,2492.5,2491.5,10.16244]
[1747003345023,4.01327102,2491.8,2491.5,9.12]
[1747003345197,4.01309225,2491.9,2491.5,8.0]
[1747003345787,4.01290511,2492.0,2491.5,8.0]
[1747003345988,4.01305629,2491.9,2491.5,8.0]
[1747003346222,4.01219707,2492.4,2491.5,8.0]
[1747003346411,4.01287341,2492.0,2491.5,8.04013166]
[1747003346815,4.01301377,2491.9,2491.5,8.0]
[1747003347128,4.01219707,2492.4,2491.5,8.0]
[1747003347334,4.01276393,2492.1,2491.5,8.04013166]
[1747003347628,0.7957,2492.5,2492.2,8.0]
[1747003347842,0.7957,2492.5,2491.7,0.8105]
[1747003347843,4.01245817,2492.3,2491.7,0.8105]
[1747003348129,4.01225663,2492.4,2491.7,0.8105]
[1747003348296,4.01237645,2492.3,2491.8,0.04012789]
[1747003348691,4.01227877,2492.4,2491.8,0.04012789]
[1747003349622,4.83279169,2492.7,2491.8,0.04012789]
[1747003349946,4.01252115,2492.2,2491.9,0.10413845]
[1747003350236,0.821,2492.7,2491.9,0.10413845]
[1747003350441,4.01206124,2492.5,2491.9,0.10413845]
[1747003350644,4.01206124,2492.5,2491.8,0.04012789]
[1747003350959,4.01206124,2492.5,2492.0,0.10418493]
[1747003351254,4.01204208,2492.5,2492.1,0.10418493]
[1747003351651,4.01227684,2492.4,2491.9,8.0]
[1747003352005,4.01227684,2492.4,2492.0,0.10418493]
[1747003352638,4.01210905,2492.5,2492.0,0.10418493]
[1747003353258,4.01210905,2492.5,2492.0,1.22418493]
[1747003355374,4.01210905,2492.5,2492.2,0.7712]
[1747003355576,4.01210905,2492.5,2492.3,0.09393579]
[1747003355747,4.01210905,2492.5,2492.2,0.7712]
[1747003355946,4.01210905,2492.5,2492.3,0.09393579]
[1747003356152,4.01210905,2492.5,2492.2,0.7712]
[1747003356352,4.01210905,2492.5,2492.3,0.09393579]
[1747003356547,4.01210905,2492.5,2492.2,0.7712]
[1747003356774,4.01210905,2492.5,2491.9,9.12]
[1747003356775,5.42812468,2492.4,2492.3,0.09393579]
[1747003357002,1.41592761,2492.6,2491.9,1.12]
[1747003357173,4.012615,2492.2,2492.0,0.09458633]
[1747003357373,4.0120361,2492.5,2492.0,0.09458633]
[1747003357588,1.41592761,2492.6,2492.0,0.09458633]
[1747003357787,4.01268006,2492.1,2492.0,0.09458633]
[1747003359077,4.01251905,2492.2,2492.1,4.01268]
[1747003359276,4.01251905,2492.2,2492.0,0.09458633]
[1747003359559,4.01277627,2492.1,2491.8,0.7813]
[1747003359896,4.01245723,2492.3,2491.8,0.7813]
[1747003360105,4.01257592,2492.2,2491.8,0.7813]
[1747003360459,4.01270472,2492.1,2491.8,0.7813]
[1747003361297,4.01260709,2492.2,2491.8,0.7813]
[1747003361503,4.01240566,2492.3,2491.8,0.7813]
[1747003361718,4.01267909,2492.2,2491.8,0.7813]
[1747003362181,4.01271977,2492.1,2491.8,0.7813]
[1747003362592,4.01256536,2492.2,2491.8,0.7813]
[1747003362904,4.0120361,2492.5,2491.8,0.7813]
[1747003363085,4.01280162,2492.1,2491.8,0.7813]
[1747003364823,4.01284109,2492.0,2491.9,0.09458633]
[1747003365026,5.4287687,2492.0,2491.9,0.09458633]
[1747003365232,6.1811687,2492.0,2491.9,0.09458633]
[1747003365530,4.01379365,2491.5,2491.3,8.0]
[1747003365911,4.01379365,2491.5,2491.4,0.08670414]
[1747003366224,4.01325688,2491.8,2491.6,16.027317]
[1747003366518,4.01332423,2491.7,2491.4,1.45762455]
[1747003366729,1.41592761,2492.5,2491.4,1.37092041]
[1747003366888,0.7524,2492.6,2491.4,1.37092041]
[1747003366889,4.01315256,2491.9,2491.6,0.7725]
[1747003367089,0.7524,2492.1,2491.5,8.08670414]
[1747003367289,4.01332179,2491.8,2491.7,0.09353683]
[1747003367485,4.01300874,2491.9,2491.5,9.66014759]
[1747003367731,4.01300874,2491.9,2491.7,0.09353683]
[1747003367902,4.01300874,2491.9,2491.5,9.66014759]
[1747003368117,4.01300874,2491.9,2491.8,0.09353683]
[1747003368290,4.01300874,2491.9,2491.5,9.62001246]
[1747003368495,4.01286558,2492.0,2491.8,0.09353683]
[1747003368695,4.01305544,2491.9,2491.5,8.0]
[1747003368891,4.01289752,2492.0,2491.5,8.04013164]
[1747003369095,4.0127576,2492.1,2491.5,8.04013164]
[1747003369301,4.01310578,2491.9,2491.5,8.0]
[1747003369634,4.01260904,2492.2,2492.0,8.0]
[1747003369938,4.01267115,2492.2,2491.6,1.49934204]
[1747003370126,4.01277375,2492.1,2491.6,1.49934204]
[1747003370907,4.01285416,2492.0,2491.6,1.49934204]
[1747003371233,4.01285416,2492.0,2491.7,0.9499342]
[1747003371435,4.01269016,2492.1,2491.7,0.9499342]
[1747003372223,4.01287773,2492.0,2491.7,0.9499342]
[1747003372421,4.01287773,2492.0,2491.8,10.312382]
[1747003372622,4.0127547,2492.1,2491.8,8.0]
[1747003373257,4.01285373,2492.0,2491.8,8.0]
[1747003374763,4.01270471,2492.1,2491.8,8.0]
[1747003375065,4.01292439,2492.0,2491.8,8.0]
[1747003379451,4.01292439,2492.0,2491.7,8.0]
[1747003379881,4.01292439,2492.0,2491.8,0.09042209]
[1747003380383,4.80728188,2492.4,2491.8,1.1613985]
[1747003380688,4.01236007,2492.3,2492.0,8.0]
[1747003380845,4.01230798,2492.4,2491.9,8.86922848]
[1747003381048,4.01195528,2492.6,2492.1,8.08991078]
[1747003381385,4.01158731,2492.8,2492.2,0.12933455]
[1747003381586,4.01183494,2492.7,2492.2,0.12933455]
[1747003381786,4.01174785,2492.7,2492.2,0.739268]
[1747003382287,4.01174785,2492.7,2492.4,8.0]
[1747003382493,4.01160102,2492.8,2492.4,8.8291]
[1747003382687,4.01160102,2492.8,2492.5,0.08726199]
[1747003383193,4.01174512,2492.7,2492.5,0.08726199]
[1747003383991,2.67413251,2493.4,2492.5,1.46389819]
[1747003384194,0.8014,2493.2,2492.6,8.0]
[1747003384356,0.8014,2493.2,2492.7,0.08628643]
[1747003384357,1.41592761,2493.1,2492.7,0.08628643]
[1747003384895,4.01152138,2492.9,2492.7,0.08628643]
[1747003387386,4.01153468,2492.9,2492.7,0.08628643]
[1747003388284,0.8014,2493.2,2492.7,0.08628643]
[1747003388472,4.0107488,2493.3,2492.7,1.37991507]
[1747003388992,4.01090967,2493.2,2492.7,1.37991507]
[1747003389194,4.0107488,2493.3,2492.8,8.0]
[1747003389195,4.01109273,2493.1,2492.8,8.0]
[1747003389391,4.01109273,2493.1,2492.9,0.08610063]
[1747003389566,4.01123144,2493.0,2492.9,0.08610063]
[1747003390198,4.01092663,2493.2,2492.9,0.08610063]
[1747003390199,4.01114493,2493.1,2492.9,0.08610063]
[1747003390395,4.87184979,2493.4,2492.9,0.08610063]
[1747003390697,0.05,2493.4,2493.0,8.0]
[1747003390882,0.05,2493.4,2493.2,8.767]
[1747003391085,0.05,2493.4,2493.3,34.26086931]
[1747003391280,0.05,2493.4,2493.3,26.101007]
[1747003391455,0.05,2493.4,2493.3,26.18032518]
[1747003391660,0.05,2493.4,2493.3,29.3600577]
[1747003391957,0.05,2493.4,2493.3,17.2290507]
[1747003392163,0.05,2493.4,2493.3,50.39045918]
[1747003392364,0.05,2493.4,2493.3,46.80098818]
[1747003393706,0.05,2493.4,2493.3,45.37769218]
[1747003394505,0.05,2493.4,2493.3,14.04931818]
[1747003395016,4.06058795,2493.4,2493.3,6.04931818]
[1747003395168,5.47651556,2493.4,2493.3,4.92931818]
[1747003395369,6.23251556,2493.4,2493.3,4.92931818]
[1747003395596,6.23251556,2493.4,2493.3,4.85]
[1747003395966,9.15251556,2493.4,2493.3,4.85]
[1747003396399,9.75251556,2493.4,2493.3,4.85]
[1747003397384,11.05518329,2493.4,2493.3,4.85]
[1747003399420,10.45518329,2493.4,2493.3,4.85]
[1747003401175,10.45518329,2493.4,2493.3,12.85]
[1747003401612,10.45518329,2493.4,2493.3,4.85]
[1747003403890,11.21220432,2493.4,2493.3,4.85]
[1747003404427,11.43208817,2493.4,2493.3,4.85]
[1747003405422,5.24349283,2493.4,2493.3,12.85]
[1747003405718,5.0364718,2493.4,2493.3,12.85]
[1747003405925,4.2804718,2493.4,2493.3,12.85]
[1747003406929,4.06058795,2493.4,2493.3,12.85]
[1747003409326,4.66058795,2493.4,2493.3,12.85]
[1747003410232,4.06058795,2493.4,2493.3,12.85]
[1747003412535,6.77918329,2493.4,2493.3,12.85]
[1747003413900,8.67462541,2493.4,2493.3,4.85]
[1747003414100,8.9324017,2493.4,2493.3,4.85]
[1747003414742,9.1527353,2493.4,2493.3,4.85]
[1747003416410,4.01197941,2492.6,2492.2,0.7809]
[1747003416714,4.01268006,2492.1,2492.0,0.7627]
[1747003419160,4.01268006,2492.1,2492.0,0.76047279]
[1747003420834,0.7709,2492.7,2492.0,0.76047279]
[1747003421168,4.01260243,2492.2,2492.0,0.76047279]
[1747003422769,4.01244425,2492.3,2492.0,0.76047279]
[1747003424058,4.01253908,2492.2,2492.0,0.76047279]
[1747003424252,4.01253908,2492.2,2492.1,10.7544]
[1747003424483,4.01253908,2492.2,2492.1,9.15148728]
[1747003424782,4.01253908,2492.2,2492.1,8.0]
[1747003427281,4.01253908,2492.2,2492.0,0.76047279]
[1747003427282,4.01243616,2492.3,2492.2,4.012539]
[1747003427485,4.01243616,2492.3,2492.0,0.76047279]
[1747003428476,4.01252949,2492.2,2492.0,0.76047279]
[1747003428886,4.01268006,2492.1,2492.0,0.76047279]
[1747003429077,4.01268006,2492.1,2492.0,13.96742679]
[1747003429279,4.01268006,2492.1,2492.0,15.47616947]
[1747003429474,4.01231231,2492.4,2492.1,8.0]
[1747003429657,4.01217544,2492.5,2492.0,2.26921547]
[1747003429851,4.01227402,2492.4,2492.0,0.76047279]
[1747003430678,4.01144006,2492.9,2492.5,8.7836]
[1747003430894,4.01149654,2492.9,2492.5,0.82371915]
[1747003431191,0.8523,2493.4,2492.6,0.04011475]
[1747003431489,4.01134105,2493.0,2492.5,0.7836]
[1747003431990,4.01148937,2492.9,2492.5,0.7836]
[1747003433266,4.01157445,2492.8,2492.7,8.0]
[1747003433467,4.01141797,2492.9,2492.5,9.77396]
[1747003433812,4.0113209,2493.0,2492.6,0.04011487]
[1747003435557,4.01141307,2492.9,2492.6,0.04011487]
[1747003435775,4.01141307,2492.9,2492.6,9.13352236]
[1747003436307,4.01141307,2492.9,2492.7,8.0]
[1747003436308,4.01157974,2492.8,2492.7,8.0]
[1747003440343,4.01141307,2492.9,2492.7,8.0]
[1747003440665,4.01107055,2493.1,2492.8,0.7588]
[1747003441964,4.01139235,2492.9,2492.8,0.7588]
[1747003442148,4.0120361,2492.5,2492.1,0.8213]
[1747003442501,5.42809702,2492.4,2491.8,0.8213]
[1747003442712,1.41581751,2492.2,2491.6,3.677]
[1747003442919,4.01314508,2491.9,2491.6,0.768]
[1747003448292,4.01380749,2491.4,2491.3,0.7729]
[1747003448570,4.01380749,2491.4,2491.1,5.64527165]
[1747003448571,4.01300212,2491.9,2491.1,6.40197165]
[1747003448773,4.01396861,2491.3,2491.2,8.0]
[1747003448984,4.01412973,2491.2,2491.1,2.73627165]
[1747003449579,4.01412973,2491.2,2491.1,10.73627165]
[1747003450476,4.01412973,2491.2,2491.1,8.07698731]
[1747003453177,4.01412973,2491.2,2489.5,0.20936701]
[1747003453178,4.8254417,2490.2,2489.5,0.7704]
[1747003453475,7.5450677,2490.2,2489.2,0.7704]
[1747003453943,7.5373677,2490.2,2488.9,0.7515]
[1747003454151,13.3473677,2490.2,2488.9,0.7515]
[1747003454345,13.8973677,2490.2,2488.9,0.7515]
[1747003455160,14.4973677,2490.2,2488.9,0.7515]
[1747003455382,5.4177417,2490.2,2488.9,0.7515]
[1747003455568,11.2287417,2490.2,2489.1,0.09016945]
[1747003455754,11.2287417,2490.2,2489.1,0.05]
[1747003455950,11.7787417,2490.2,2489.1,0.05]
[1747003457766,11.2287417,2490.2,2489.1,0.05]
[1747003457937,13.9483677,2490.2,2489.1,0.05]
[1747003458379,13.9493677,2490.2,2489.1,0.05]
[1747003458581,8.1373677,2490.2,2489.4,0.7515]
[1747003458746,13.9373677,2490.2,2489.4,0.7515]
[1747003459143,14.4873677,2490.2,2489.1,0.8096]
[1747003459642,14.4873677,2490.2,2489.1,0.05]
[1747003460679,8.1373677,2490.2,2489.1,0.05]
[1747003460879,8.3177417,2490.2,2489.5,0.7596]
[1747003461079,11.2167417,2490.2,2489.5,0.7596]
[1747003461481,5.4177417,2490.2,2489.5,0.7596]
[1747003461867,7.5167417,2490.2,2489.5,0.7596]
[1747003462075,4.0157417,2490.2,2489.5,0.7596]
[1747003464665,4.0157417,2490.2,2489.2,1.12]
[1747003464666,5.3414417,2490.2,2489.1,0.8533]
[1747003465150,5.9414417,2490.2,2489.1,0.8533]
[1747003466490,5.3414417,2490.2,2489.1,0.8533]
[1747003467403,4.7914417,2490.2,2489.1,0.8533]
[1747003467566,4.7914417,2490.2,2489.6,0.8033]
[1747003467567,6.9167417,2490.2,2489.6,0.8033]
[1747003469791,11.1178417,2490.2,2489.4,0.7684]
[1747003470198,11.7178417,2490.2,2489.4,0.7684]
[1747003470494,11.7178417,2490.2,2489.1,0.05]
[1747003472996,11.1178417,2490.2,2489.4,0.8262]
[1747003473705,11.1178417,2490.2,2489.1,0.05]
[1747003474012,5.32045497,2489.2,2489.1,0.05]
[1747003474164,6.73859553,2488.2,2487.2,0.8262]
[1747003474487,4.01896953,2488.2,2487.7,0.7917]
[1747003474701,10.19,2488.7,2487.7,0.7917]
[1747003474881,4.01896953,2488.2,2487.7,0.7917]
[1747003481193,4.01884136,2488.3,2488.2,0.8078]
[1747003481393,4.01871055,2488.4,2488.2,0.8078]
[1747003481596,4.01848696,2488.5,2488.2,0.90317674]
[1747003481834,2.902,2488.6,2488.2,0.90317674]